fUSD/lending_fUSD_20260617
["ID","MTS","AMOUNT","RATE_DAILY","PERIOD"]
[425246838,1781632312000,-1476.08,0.000347,19]
[425246832,1781632312000,-730.0,0.00034613,10]
[425246840,1781632312000,-633.82,0.000347,19]
[425246860,1781632312000,-5674.76236898,0.00034852,2]
[425246863,1781632312000,-2930.4449,0.00034896,2]
[425246864,1781632312000,-4948.0911,0.00034896,2]
[425246869,1781632312000,-500.0,0.0003495,10]
[425246867,1781632312000,-152.0,0.00034906,18]
[425246870,1781632312000,-500.0,0.0003495,10]
[425246866,1781632312000,-6940.98531995,0.00034904,30]
[425246868,1781632312000,-278.95211607,0.0003495,30]
[425246872,1781632312000,-1538.68420393,0.00034959,30]
[425246871,1781632312000,-410.0,0.00034952,2]
[425246874,1781632312000,-155.15,0.0003498,120]
[425246873,1781632312000,-548.92952,0.00034978,120]
[425246875,1781632312000,-150.5,0.0003499,120]
[425246878,1781632312000,-151.435,0.00035,2]
[425246877,1781632312000,-150.0,0.00035,2]
[425246876,1781632312000,-150.0,0.00034999,2]
[425246842,1781632312000,-2542.16820703,0.0003476,30]
[425246861,1781632312000,-3168.75752638,0.00034859,30]
[425246858,1781632312000,-5800.0,0.00034843,2]
[425246865,1781632312000,-200.0,0.000349,13]
[425246859,1781632312000,-575.93,0.00034844,7]
[425246839,1781632312000,-720.72,0.000347,19]
[425246857,1781632312000,-5800.0,0.00034835,2]
[425246845,1781632312000,-5800.0,0.00034775,2]
[425246841,1781632312000,-461.27574221,0.00034747,30]
[425246843,1781632312000,-2930.4449,0.00034773,2]
[425246846,1781632312000,-500.0,0.00034784,120]
[425246847,1781632312000,-5800.0,0.00034784,2]
[425246849,1781632312000,-5800.0,0.00034792,2]
[425246844,1781632312000,-4948.0911,0.00034773,2]
[425246853,1781632312000,-5800.0,0.00034809,2]
[425246850,1781632312000,-2739.45,0.00034794,60]
[425246851,1781632312000,-1500.0,0.00034795,2]
[425246848,1781632312000,-553.41199225,0.00034785,30]
[425246854,1781632312000,-5800.0,0.00034818,2]
[425246852,1781632312000,-5800.0,0.00034801,2]
[425246855,1781632312000,-5800.0,0.00034826,2]
[425246856,1781632312000,-206.16949625,0.00034829,7]
[425246903,1781632313000,-315.06178872,0.00035,120]
[425246909,1781632313000,-45870.80676641,0.00035,7]
[425246904,1781632313000,-1416.1462627,0.00035,120]
[425246908,1781632313000,-557.77755219,0.00035,2]
[425246906,1781632313000,-112389.25027989,0.00035,7]
[425246902,1781632313000,-177.51975711,0.00035,120]
[425246907,1781632313000,-424.87320724,0.00035,2]
[425246905,1781632313000,-112389.25027989,0.00035,7]
[425246911,1781632313000,-199.999999,0.00035,120]
[425246919,1781632313000,-6304.01896237,0.00035,30]
[425246914,1781632313000,-1944.57,0.00035,30]
[425246912,1781632313000,-23615.68604936,0.00035,7]
[425246913,1781632313000,-23615.68604936,0.00035,7]
[425246915,1781632313000,-1073.02768414,0.00035,14]
[425246916,1781632313000,-20000.0,0.00035,10]
[425246917,1781632313000,-1000.0,0.00035,120]
[425246920,1781632313000,-22477.0,0.00035,2]
[425246921,1781632313000,-756.92705244,0.00035,30]
[425246900,1781632313000,-1404.81176343,0.00035,120]
[425246910,1781632313000,-45870.80676641,0.00035,7]
[425246898,1781632313000,-397.71917115,0.00035,120]
[425246882,1781632313000,-15033.42314162,0.00035,2]
[425246901,1781632313000,-192.57435081,0.00035,120]
[425246918,1781632313000,-200.0,0.00035,120]
[425246880,1781632313000,-800.0,0.00035,7]
[425246879,1781632313000,-800.0,0.00035,7]
[425246881,1781632313000,-4837.0,0.00035,2]
[425246884,1781632313000,-154.0,0.00035,2]
[425246885,1781632313000,-208.71599948,0.00035,120]
[425246883,1781632313000,-1000.0,0.00035,120]
[425246887,1781632313000,-161.55800474,0.00035,120]
[425246886,1781632313000,-498.08186464,0.00035,120]
[425246889,1781632313000,-350.94364227,0.00035,120]
[425246890,1781632313000,-587.96712675,0.00035,120]
[425246893,1781632313000,-393.84337441,0.00035,120]
[425246888,1781632313000,-179.25244946,0.00035,120]
[425246891,1781632313000,-703.47784449,0.00035,120]
[425246892,1781632313000,-387.28659165,0.00035,120]
[425246894,1781632313000,-897.06807201,0.00035,120]
[425246896,1781632313000,-390.74924321,0.00035,120]
[425246895,1781632313000,-190.91066939,0.00035,120]
[425246897,1781632313000,-400.73050322,0.00035,120]
[425246899,1781632313000,-915.93030031,0.00035,120]
[425246925,1781632313000,-346.0,0.0003504,30]
[425246955,1781632313000,-700.0,0.00035178,2]
[425246922,1781632313000,-2930.4449,0.00035019,2]
[425246949,1781632313000,-700.0,0.00035178,2]
[425246948,1781632313000,-6078.0,0.00035166,2]
[425246954,1781632313000,-700.0,0.00035178,2]
[425246951,1781632313000,-700.0,0.00035178,2]
[425246952,1781632313000,-700.0,0.00035178,2]
[425246950,1781632313000,-700.0,0.00035178,2]
[425246953,1781632313000,-700.0,0.00035178,2]
[425246956,1781632313000,-700.0,0.00035178,2]
[425246946,1781632313000,-730.0,0.00035147,10]
[425246958,1781632313000,-700.0,0.00035178,2]
[425246967,1781632313000,-700.0,0.00035178,2]
[425246960,1781632313000,-700.0,0.00035178,2]
[425246961,1781632313000,-700.0,0.00035178,2]
[425246963,1781632313000,-700.0,0.00035178,2]
[425246959,1781632313000,-700.0,0.00035178,2]
[425246965,1781632313000,-700.0,0.00035178,2]
[425246962,1781632313000,-700.0,0.00035178,2]
[425246924,1781632313000,-294.47,0.0003503,30]
[425246964,1781632313000,-700.0,0.00035178,2]
[425246947,1781632313000,-419.0,0.00035166,2]
[425246957,1781632313000,-700.0,0.00035178,2]
[425246938,1781632313000,-819.0,0.00035051,30]
[425246923,1781632313000,-4948.0911,0.00035019,2]
[425246944,1781632313000,-2930.4449,0.00035143,2]
[425246927,1781632313000,-792.0,0.0003504,30]
[425246926,1781632313000,-328.0,0.0003504,30]
[425246928,1781632313000,-438.0,0.0003504,30]
[425246929,1781632313000,-418.0,0.00035041,30]
[425246935,1781632313000,-502.0,0.00035051,30]
[425246930,1781632313000,-418.0,0.00035041,30]
[425246931,1781632313000,-304.0,0.00035041,30]
[425246933,1781632313000,-2538.0,0.00035041,30]
[425246934,1781632313000,-150.350413,0.00035041,2]
[425246966,1781632313000,-700.0,0.00035178,2]
[425246932,1781632313000,-1853.0,0.00035041,30]
[425246945,1781632313000,-4948.0911,0.00035143,2]
[425246937,1781632313000,-335.0,0.00035051,30]
[425246936,1781632313000,-1535.0,0.00035051,30]
[425246940,1781632313000,-2000.0,0.00035079,7]
[425246939,1781632313000,-212.0,0.00035051,30]
[425246942,1781632313000,-1396.83280242,0.00035127,30]
[425246941,1781632313000,-241.05257462,0.00035105,7]
[425246943,1781632313000,-700.0,0.00035129,60]
[425246993,1781632314000,-700.0,0.00035178,2]
[425247001,1781632314000,-5000.0,0.00035193,2]
[425246990,1781632314000,-700.0,0.00035178,2]
[425246994,1781632314000,-700.0,0.00035178,2]
[425246996,1781632314000,-700.0,0.00035178,2]
[425246995,1781632314000,-700.0,0.00035178,2]
[425246998,1781632314000,-5007.84999723,0.00035193,2]
[425246999,1781632314000,-5000.0,0.00035193,2]
[425247000,1781632314000,-5000.0,0.00035193,2]
[425247004,1781632314000,-500.0,0.00035253,29]
[425247006,1781632314000,-4948.0911,0.00035266,2]
[425247005,1781632314000,-2930.4449,0.00035266,2]
[425247002,1781632314000,-1133.14232861,0.00035202,2]
[425247003,1781632314000,-1744.77,0.00035248,5]
[425246991,1781632314000,-700.0,0.00035178,2]
[425247009,1781632314000,-150.0,0.00035285,2]
[425247008,1781632314000,-198.49602795,0.00035285,120]
[425247014,1781632314000,-254.7,0.00035303,9]
[425247011,1781632314000,-150.52579415,0.00035285,2]
[425247010,1781632314000,-150.0,0.00035285,2]
[425247016,1781632314000,-426.22,0.0003531,30]
[425247007,1781632314000,-663.20222,0.00035279,120]
[425247013,1781632314000,-289.62,0.00035303,9]
[425246977,1781632314000,-700.0,0.00035178,2]
[425246989,1781632314000,-700.0,0.00035178,2]
[425247015,1781632314000,-500.0,0.0003531,30]
[425246978,1781632314000,-700.0,0.00035178,2]
[425246970,1781632314000,-700.0,0.00035178,2]
[425246968,1781632314000,-700.0,0.00035178,2]
[425246971,1781632314000,-700.0,0.00035178,2]
[425246969,1781632314000,-700.0,0.00035178,2]
[425246972,1781632314000,-700.0,0.00035178,2]
[425246974,1781632314000,-700.0,0.00035178,2]
[425246975,1781632314000,-700.0,0.00035178,2]
[425246973,1781632314000,-700.0,0.00035178,2]
[425246992,1781632314000,-700.0,0.00035178,2]
[425246976,1781632314000,-700.0,0.00035178,2]
[425246986,1781632314000,-700.0,0.00035178,2]
[425246983,1781632314000,-700.0,0.00035178,2]
[425246981,1781632314000,-700.0,0.00035178,2]
[425246980,1781632314000,-700.0,0.00035178,2]
[425246982,1781632314000,-700.0,0.00035178,2]
[425246985,1781632314000,-700.0,0.00035178,2]
[425246984,1781632314000,-700.0,0.00035178,2]
[425246987,1781632314000,-700.0,0.00035178,2]
[425246988,1781632314000,-700.0,0.00035178,2]
[425246997,1781632314000,-596.0,0.00035178,2]
[425246979,1781632314000,-700.0,0.00035178,2]
[425247018,1781632314000,-883.0,0.00035342,120]
[425247040,1781632314000,-476.10443138,0.00035433,2]
[425247017,1781632314000,-377.0,0.00035337,2]
[425247044,1781632314000,-100000.0,0.00035455,60]
[425247043,1781632314000,-100000.0,0.00035455,7]
[425247048,1781632314000,-500.1,0.00035455,3]
[425247049,1781632314000,-500.1,0.00035455,3]
[425247053,1781632314000,-20890.55152087,0.00035493,2]
[425247056,1781632314000,-800.0,0.000355,7]
[425247057,1781632314000,-2930.4449,0.00035513,2]
[425247051,1781632314000,-154.206301,0.00035462,16]
[425247050,1781632314000,-294.47,0.0003546,69]
[425247052,1781632314000,-10421.0,0.0003549,10]
[425247055,1781632314000,-800.0,0.000355,7]
[425247054,1781632314000,-45000.0,0.000355,14]
[425247058,1781632314000,-4948.0911,0.00035513,2]
[425247060,1781632314000,-151.0,0.00035549,2]
[425247059,1781632314000,-160.45822055,0.00035548,2]
[425247062,1781632314000,-804.17102365,0.00035549,2]
[425247063,1781632314000,-152.0,0.00035568,19]
[425247061,1781632314000,-693.39197629,0.00035549,2]
[425247066,1781632314000,-1667.5,0.00035589,120]
[425247065,1781632314000,-631.615277,0.00035579,120]
[425247064,1781632314000,-216.6604057,0.00035568,7]
[425247045,1781632314000,-100000.0,0.00035455,90]
[425247047,1781632314000,-500.1,0.00035455,3]
[425247012,1781632314000,-593.16,0.00035303,9]
[425247042,1781632314000,-100000.0,0.00035455,30]
[425247020,1781632314000,-5000.0,0.00035355,2]
[425247022,1781632314000,-5000.0,0.00035355,2]
[425247021,1781632314000,-5000.0,0.00035355,2]
[425247019,1781632314000,-5010.54194764,0.00035355,2]
[425247023,1781632314000,-5000.0,0.00035355,2]
[425247024,1781632314000,-500.0,0.00035357,30]
[425247041,1781632314000,-100000.0,0.00035455,120]
[425247027,1781632314000,-500.0,0.0003537,60]
[425247026,1781632314000,-3948.2768248,0.00035362,2]
[425247029,1781632314000,-500.0,0.0003537,60]
[425247028,1781632314000,-500.0,0.0003537,60]
[425247025,1781632314000,-166.43,0.00035357,30]
[425247031,1781632314000,-500.0,0.0003537,60]
[425247033,1781632314000,-486.87669453,0.0003537,60]
[425247030,1781632314000,-500.0,0.0003537,60]
[425247035,1781632314000,-2044.6615,0.00035389,2]
[425247034,1781632314000,-2930.4449,0.00035389,2]
[425247037,1781632314000,-200.0,0.000354,60]
[425247036,1781632314000,-4948.0911,0.00035389,2]
[425247039,1781632314000,-2018.3914846,0.00035423,15]
[425247038,1781632314000,-3121.78,0.00035401,60]
[425247046,1781632314000,-500.1,0.00035455,3]
[425247032,1781632314000,-500.0,0.0003537,60]
[425247101,1781632315000,-500.0,0.00035616,7]
[425247098,1781632315000,-500.0,0.00035616,7]
[425247091,1781632315000,-1000.0,0.00035616,120]
[425247097,1781632315000,-500.0,0.00035616,7]
[425247092,1781632315000,-2542.16820703,0.00035616,30]
[425247099,1781632315000,-500.0,0.00035616,7]
[425247100,1781632315000,-500.0,0.00035616,7]
[425247096,1781632315000,-158.94556138,0.00035616,7]
[425247093,1781632315000,-500.0,0.00035616,120]
[425247107,1781632315000,-1160.134367,0.00035616,30]
[425247113,1781632315000,-1160.134367,0.00035616,30]
[425247102,1781632315000,-558.18907203,0.00035616,7]
[425247106,1781632315000,-1160.134367,0.00035616,30]
[425247103,1781632315000,-858.17202004,0.00035616,7]
[425247104,1781632315000,-858.17202004,0.00035616,7]
[425247109,1781632315000,-1160.134367,0.00035616,30]
[425247105,1781632315000,-562.47,0.00035616,2]
[425247110,1781632315000,-1160.134367,0.00035616,30]
[425247111,1781632315000,-1160.134367,0.00035616,30]
[425247112,1781632315000,-1160.134367,0.00035616,30]
[425247095,1781632315000,-314.0,0.00035616,120]
[425247108,1781632315000,-1160.134367,0.00035616,30]
[425247094,1781632315000,-1000.0,0.00035616,120]
[425247080,1781632315000,-1459.0,0.00035589,120]
[425247088,1781632315000,-601.0,0.00035616,120]
[425247119,1781632315000,-1160.134367,0.00035616,30]
[425247067,1781632315000,-1667.5,0.00035589,120]
[425247069,1781632315000,-1688.5,0.00035589,120]
[425247070,1781632315000,-2200.5,0.00035589,120]
[425247071,1781632315000,-2200.5,0.00035589,120]
[425247078,1781632315000,-2210.0,0.00035589,120]
[425247074,1781632315000,-2359.0,0.00035589,120]
[425247076,1781632315000,-2454.0,0.00035589,120]
[425247072,1781632315000,-1417.5,0.00035589,120]
[425247075,1781632315000,-2359.0,0.00035589,120]
[425247077,1781632315000,-2210.0,0.00035589,120]
[425247073,1781632315000,-1417.5,0.00035589,120]
[425247079,1781632315000,-1459.0,0.00035589,120]
[425247082,1781632315000,-1294.401,0.000356,120]
[425247085,1781632315000,-171415.1424669,0.0003561,2]
[425247081,1781632315000,-300.0,0.00035598,30]
[425247083,1781632315000,-1294.401,0.000356,60]
[425247086,1781632315000,-4524.30699425,0.0003561,2]
[425247084,1781632315000,-1294.4,0.000356,120]
[425247089,1781632315000,-600.0,0.00035616,120]
[425247087,1781632315000,-1112.08858826,0.00035616,60]
[425247090,1781632315000,-2000.0,0.00035616,30]
[425247068,1781632315000,-1688.5,0.00035589,120]
[425247118,1781632315000,-1160.134367,0.00035616,30]
[425247120,1781632315000,-1160.134367,0.00035616,30]
[425247141,1781632315000,-564.5054,0.00035677,60]
[425247143,1781632315000,-564.5054,0.00035677,60]
[425247142,1781632315000,-564.5054,0.00035677,60]
[425247144,1781632315000,-564.5054,0.00035677,60]
[425247145,1781632315000,-564.5054,0.00035677,60]
[425247149,1781632315000,-564.5054,0.00035677,60]
[425247151,1781632315000,-564.50572126,0.00035677,60]
[425247150,1781632315000,-564.5054,0.00035677,60]
[425247154,1781632315000,-250.0,0.00035709,39]
[425247155,1781632315000,-1000.0,0.00035726,120]
[425247147,1781632315000,-564.5054,0.00035677,60]
[425247158,1781632315000,-4948.0911,0.00035759,2]
[425247152,1781632315000,-730.0,0.00035681,11]
[425247153,1781632315000,-1000.0,0.00035698,120]
[425247160,1781632315000,-9092.06679285,0.000358,30]
[425247159,1781632315000,-1000.0,0.0003578,120]
[425247161,1781632315000,-1000.0,0.00035808,120]
[425247163,1781632315000,-3000.0,0.00035828,30]
[425247162,1781632315000,-276.73,0.00035828,30]
[425247164,1781632315000,-1609.73802073,0.00035828,30]
[425247165,1781632315000,-208.66,0.00035828,30]
[425247115,1781632315000,-1160.134367,0.00035616,30]
[425247156,1781632315000,-1000.0,0.00035753,120]
[425247139,1781632315000,-564.5054,0.00035677,60]
[425247157,1781632315000,-2930.4449,0.00035759,2]
[425247148,1781632315000,-564.5054,0.00035677,60]
[425247146,1781632315000,-564.5054,0.00035677,60]
[425247117,1781632315000,-1160.134367,0.00035616,30]
[425247116,1781632315000,-1160.134367,0.00035616,30]
[425247122,1781632315000,-1160.134367,0.00035616,30]
[425247121,1781632315000,-1160.134367,0.00035616,30]
[425247124,1781632315000,-1160.134367,0.00035616,30]
[425247123,1781632315000,-1160.134367,0.00035616,30]
[425247127,1781632315000,-2930.4449,0.00035636,2]
[425247125,1781632315000,-1160.134361,0.00035616,30]
[425247129,1781632315000,-1000.0,0.00035643,120]
[425247128,1781632315000,-4948.0911,0.00035636,2]
[425247114,1781632315000,-1160.134367,0.00035616,30]
[425247130,1781632315000,-566.62,0.00035669,7]
[425247126,1781632315000,-7208.95,0.00035635,2]
[425247133,1781632315000,-564.5054,0.00035677,60]
[425247137,1781632315000,-564.5054,0.00035677,60]
[425247138,1781632315000,-564.5054,0.00035677,60]
[425247132,1781632315000,-564.5054,0.00035677,60]
[425247140,1781632315000,-564.5054,0.00035677,60]
[425247134,1781632315000,-564.5054,0.00035677,60]
[425247135,1781632315000,-564.5054,0.00035677,60]
[425247131,1781632315000,-1000.0,0.00035671,120]
[425247136,1781632315000,-564.5054,0.00035677,60]
[425247206,1781632316000,-213.83348652,0.00035996,120]
[425247194,1781632316000,-150.0,0.00035951,2]
[425247191,1781632316000,-250.0,0.00035951,7]
[425247189,1781632316000,-500.0,0.00035951,60]
[425247196,1781632316000,-500.0,0.00035951,2]
[425247193,1781632316000,-2110.0,0.00035951,2]
[425247195,1781632316000,-150.0,0.00035951,2]
[425247192,1781632316000,-357.0,0.00035951,2]
[425247199,1781632316000,-1000.0,0.00035951,2]
[425247200,1781632316000,-1000.0,0.00035951,2]
[425247205,1781632316000,-1000.0,0.00035972,120]
[425247201,1781632316000,-150.0,0.00035951,2]
[425247207,1781632316000,-212.82135112,0.00035996,120]
[425247202,1781632316000,-150.0,0.00035951,2]
[425247204,1781632316000,-300.0,0.0003597,2]
[425247214,1781632316000,-1003.0,0.00036,30]
[425247213,1781632316000,-225.0,0.00036,7]
[425247210,1781632316000,-1000.0,0.00036,120]
[425247211,1781632316000,-347.32215016,0.00036,120]
[425247208,1781632316000,-214.55542187,0.00035996,120]
[425247209,1781632316000,-1800.0,0.00036,30]
[425247190,1781632316000,-500.0,0.00035951,60]
[425247203,1781632316000,-400.0,0.0003597,2]
[425247212,1781632316000,-300000.0,0.00036,120]
[425247166,1781632316000,-505.71555592,0.00035829,30]
[425247197,1781632316000,-500.0,0.00035951,2]
[425247167,1781632316000,-845.18,0.00035829,30]
[425247169,1781632316000,-151.5,0.00035849,7]
[425247168,1781632316000,-1000.0,0.00035835,120]
[425247171,1781632316000,-1000.0,0.00035863,120]
[425247170,1781632316000,-500.0,0.0003586,120]
[425247176,1781632316000,-150.0,0.00035899,2]
[425247173,1781632316000,-2930.4449,0.00035883,2]
[425247174,1781632316000,-4948.0911,0.00035883,2]
[425247172,1781632316000,-524.777176,0.00035879,120]
[425247177,1781632316000,-1808.99173839,0.000359,2]
[425247198,1781632316000,-1000.0,0.00035951,2]
[425247175,1781632316000,-1000.0,0.0003589,120]
[425247178,1781632316000,-969.06,0.000359,30]
[425247182,1781632316000,-247.2,0.000359,2]
[425247180,1781632316000,-1245.21,0.000359,30]
[425247183,1781632316000,-294.47,0.000359,98]
[425247181,1781632316000,-1169.3,0.000359,30]
[425247188,1781632316000,-700.0,0.00035951,60]
[425247184,1781632316000,-150.0,0.000359,120]
[425247185,1781632316000,-195.042,0.000359,33]
[425247187,1781632316000,-1000.0,0.00035945,120]
[425247186,1781632316000,-1000.0,0.00035917,120]
[425247179,1781632316000,-200.0,0.000359,14]
[425247215,1781632316000,-1778.43,0.00036,30]
[425247248,1781632316000,-915.93030031,0.00036,120]
[425247218,1781632316000,-2500.0,0.00036,37]
[425247244,1781632316000,-897.06807201,0.00036,120]
[425247243,1781632316000,-393.84337441,0.00036,120]
[425247241,1781632316000,-387.28659165,0.00036,120]
[425247251,1781632316000,-1416.1462627,0.00036,120]
[425247249,1781632316000,-1404.81176343,0.00036,120]
[425247252,1781632316000,-423.0,0.00036,30]
[425247250,1781632316000,-315.06178872,0.00036,120]
[425247253,1781632316000,-556.0,0.00036,120]
[425247254,1781632316000,-1000.0,0.00036,120]
[425247259,1781632316000,-466.59489816,0.00036,2]
[425247242,1781632316000,-703.47784449,0.00036,120]
[425247255,1781632316000,-950.46242439,0.00036,2]
[425247256,1781632316000,-950.46242439,0.00036,2]
[425247261,1781632316000,-151.55,0.00036001,14]
[425247264,1781632316000,-4948.0911,0.00036006,2]
[425247260,1781632316000,-466.59489816,0.00036,2]
[425247262,1781632316000,-151.55,0.00036001,14]
[425247263,1781632316000,-2930.4449,0.00036006,2]
[425247266,1781632316000,-150.0,0.0003602,2]
[425247265,1781632316000,-150.0,0.0003602,2]
[425247267,1781632316000,-1000.0,0.00036027,120]
[425247216,1781632316000,-2000.0,0.00036,30]
[425247257,1781632316000,-3407.68548292,0.00036,30]
[425247240,1781632316000,-587.96712675,0.00036,120]
[425247258,1781632316000,-3407.68548292,0.00036,30]
[425247238,1781632316000,-179.25244946,0.00036,120]
[425247220,1781632316000,-800.0,0.00036,7]
[425247221,1781632316000,-800.0,0.00036,7]
[425247222,1781632316000,-2000.0,0.00036,2]
[425247219,1781632316000,-569.20169565,0.00036,7]
[425247223,1781632316000,-600.0,0.00036,120]
[425247227,1781632316000,-1000.0,0.00036,70]
[425247225,1781632316000,-800.0,0.00036,7]
[425247226,1781632316000,-370.58781387,0.00036,5]
[425247224,1781632316000,-50000.0,0.00036,4]
[425247228,1781632316000,-3000.0,0.00036,14]
[425247234,1781632316000,-14000.0,0.00036,120]
[425247217,1781632316000,-4008.93718319,0.00036,14]
[425247230,1781632316000,-473.0,0.00036,30]
[425247229,1781632316000,-564.0,0.00036,30]
[425247237,1781632316000,-161.55800474,0.00036,120]
[425247232,1781632316000,-800.0,0.00036,7]
[425247231,1781632316000,-800.0,0.00036,7]
[425247233,1781632316000,-154.0,0.00036,30]
[425247235,1781632316000,-208.71599948,0.00036,120]
[425247236,1781632316000,-498.08186464,0.00036,120]
[425247245,1781632316000,-390.74924321,0.00036,120]
[425247246,1781632316000,-400.73050322,0.00036,120]
[425247239,1781632316000,-350.94364227,0.00036,120]
[425247247,1781632316000,-397.71917115,0.00036,120]
[425247307,1781632317000,-172.3689006,0.00036191,120]
[425247304,1781632317000,-164.9682264,0.00036191,120]
[425247301,1781632317000,-232.592795,0.00036191,120]
[425247302,1781632317000,-234.375,0.00036191,120]
[425247300,1781632317000,-163.3122978,0.00036191,120]
[425247295,1781632317000,-519.067493,0.00036179,120]
[425247294,1781632317000,-1361.47,0.00036177,7]
[425247296,1781632317000,-150.0,0.00036185,120]
[425247306,1781632317000,-291.8493775,0.00036191,120]
[425247293,1781632317000,-974.0,0.00036177,3]
[425247305,1781632317000,-177.1859959,0.00036191,120]
[425247322,1781632317000,-234.375,0.00036191,120]
[425247310,1781632317000,-288.4100503,0.00036191,120]
[425247311,1781632317000,-228.1698557,0.00036191,120]
[425247308,1781632317000,-206.3351029,0.00036191,120]
[425247323,1781632317000,-189.84375,0.00036191,120]
[425247312,1781632317000,-234.375,0.00036191,120]
[425247321,1781632317000,-234.375,0.00036191,120]
[425247313,1781632317000,-234.375,0.00036191,120]
[425247318,1781632317000,-285.2454715,0.00036191,120]
[425247320,1781632317000,-177.1322247,0.00036191,120]
[425247314,1781632317000,-234.375,0.00036191,120]
[425247299,1781632317000,-263.1081485,0.00036191,120]
[425247309,1781632317000,-219.4978866,0.00036191,120]
[425247298,1781632317000,-214.3336185,0.00036191,120]
[425247276,1781632317000,-1000.0,0.00036082,120]
[425247297,1781632317000,-350.0,0.0003619,40]
[425247270,1781632317000,-1000.0,0.00036054,120]
[425247268,1781632317000,-5000.0,0.00036038,10]
[425247269,1781632317000,-195.57337039,0.00036038,7]
[425247271,1781632317000,-5000.0,0.00036057,10]
[425247274,1781632317000,-818.27,0.00036081,120]
[425247272,1781632317000,-339.39,0.00036066,10]
[425247273,1781632317000,-1512.76,0.00036081,120]
[425247281,1781632317000,-7600.40094074,0.000361,30]
[425247278,1781632317000,-251.24,0.000361,60]
[425247279,1781632317000,-7600.40094076,0.000361,30]
[425247275,1781632317000,-242.27,0.00036081,120]
[425247291,1781632317000,-1000.0,0.00036164,120]
[425247280,1781632317000,-7600.40094074,0.000361,30]
[425247317,1781632317000,-234.375,0.00036191,120]
[425247283,1781632317000,-1000.0,0.00036109,120]
[425247282,1781632317000,-377.0,0.00036105,2]
[425247285,1781632317000,-1924.2,0.00036121,10]
[425247284,1781632317000,-158.25033973,0.00036115,2]
[425247286,1781632317000,-5000.0,0.00036127,10]
[425247287,1781632317000,-2930.4449,0.00036129,2]
[425247290,1781632317000,-1734.78,0.00036159,2]
[425247288,1781632317000,-4948.0911,0.00036129,2]
[425247289,1781632317000,-1000.0,0.00036136,120]
[425247292,1781632317000,-153.0,0.00036164,10]
[425247277,1781632317000,-2500.0,0.00036096,2]
[425247316,1781632317000,-222.5012802,0.00036191,120]
[425247303,1781632317000,-234.375,0.00036191,120]
[425247319,1781632317000,-275.0221129,0.00036191,120]
[425247355,1781632317000,-500.0,0.00036191,120]
[425247357,1781632317000,-500.0,0.00036191,120]
[425247350,1781632317000,-971.3738986,0.00036191,120]
[425247353,1781632317000,-247.0546176,0.00036191,120]
[425247358,1781632317000,-500.0,0.00036191,120]
[425247354,1781632317000,-265.625,0.00036191,120]
[425247356,1781632317000,-500.0,0.00036191,120]
[425247359,1781632317000,-500.0,0.00036191,120]
[425247363,1781632317000,-868.1872231,0.00036191,120]
[425247362,1781632317000,-250.35,0.00036191,120]
[425247361,1781632317000,-840.7536226,0.00036191,120]
[425247352,1781632317000,-232.868795,0.00036191,120]
[425247366,1781632317000,-161.8706584,0.00036191,120]
[425247368,1781632317000,-500.0,0.00036191,120]
[425247360,1781632317000,-500.0,0.00036191,120]